bitfinex/quotes_ETHUSD_20251009
["timestamp","ask_amount","ask_price","bid_price","bid_amount"]
[1760021768357,6.851,4345.6,4344.2,2.8213]
[1760021768513,0.1056,4345.4,4344.1,0.001]
[1760021768942,0.6336,4345.3,4344.1,0.001]
[1760021769423,2.30165488,4344.7,4344.1,0.001]
[1760021769813,2.40725488,4344.7,4344.1,0.001]
[1760021770014,3.80253828,4344.7,4344.1,0.001]
[1760021770526,4.43613828,4344.7,4344.1,0.001]
[1760021770728,2.1344834,4344.7,4344.1,0.001]
[1760021770932,9.9842,4344.7,4344.1,0.001]
[1760021771106,2.93525488,4344.7,4344.1,0.001]
[1760021771308,9.78625488,4344.7,4344.1,0.001]
[1760021771724,9.89185488,4344.7,4344.1,0.001]
[1760021772910,2.93525488,4344.7,4344.1,0.001]
[1760021773126,0.6336,4345.2,4344.1,0.001]
[1760021773321,0.1056,4344.7,4344.1,0.001]
[1760021773526,3.258,4344.9,4344.1,0.001]
[1760021773929,0.1056,4344.8,4344.1,0.001]
[1760021774124,2.30165488,4344.7,4344.1,0.001]
[1760021774324,2.40725488,4344.7,4344.1,0.001]
[1760021774846,0.80590722,4344.8,4344.1,2.30297215]
[1760021775018,2.30162072,4344.8,4344.1,0.001]
[1760021775215,2.30132429,4345.4,4344.6,2.30268929]
[1760021775420,0.2083,4345.9,4344.7,2.32464738]
[1760021775421,0.1144,4344.8,4344.7,2.32464738]
[1760021775646,0.1056,4345.9,4344.7,0.4283]
[1760021775850,6.399,4345.8,4345.3,2.3013353]
[1760021776051,1.544,4345.8,4345.3,2.3013353]
[1760021776229,6.85,4345.9,4345.3,2.3013353]
[1760021776620,0.2072,4346.2,4345.1,0.02301443]
[1760021776821,2.30102489,4345.9,4344.7,0.4283]
[1760021777019,6.851,4345.9,4344.7,0.4283]
[1760021777547,2.30097634,4346.0,4344.7,0.4283]
[1760021777750,0.099,4347.1,4344.7,0.4283]
[1760021777951,11.88400844,4347.9,4345.1,11.88200844]
[1760021777952,2.39918237,4347.5,4345.1,11.88200844]
[1760021778139,2.39918237,4347.5,4345.2,4.7423]
[1760021778140,5.97922542,4347.4,4345.2,4.7423]
[1760021778341,5.97922542,4347.4,4345.5,2.30118541]
[1760021778637,5.97922542,4347.4,4344.6,9.578]
[1760021778638,2.019,4347.3,4344.6,0.001]
[1760021778825,2.30069277,4346.6,4345.5,2.30121367]
[1760021779029,6.25770687,4346.5,4345.7,2.30111313]
[1760021779460,3.957,4346.5,4345.8,2.30106017]
[1760021779657,3.957,4346.5,4345.9,2.30100227]
[1760021779862,2.30047887,4347.0,4346.1,2.30089092]
[1760021780067,6.85,4346.9,4346.2,0.0230086]
[1760021780252,9.244,4346.9,4346.2,2.30081213]
[1760021780448,2.30054461,4346.8,4345.6,0.4283]
[1760021780758,11.54449982,4346.9,4345.6,0.4283]
[1760021780935,11.54449982,4346.9,4346.1,2.30090461]
[1760021781138,2.30054335,4346.8,4345.6,0.4283]
[1760021781334,2.30069053,4346.6,4345.7,2.30108058]
[1760021781530,2.30055274,4346.8,4343.7,2.99407322]
[1760021781531,0.099,4346.5,4343.7,2.99407322]
[1760021781735,0.099,4346.4,4345.7,2.30111496]
[1760021781935,2.39975487,4346.4,4345.6,2.30116969]
[1760021782230,6.849,4346.4,4345.7,2.30108132]
[1760021782443,6.849,4346.4,4345.9,2.30101062]
[1760021782664,6.849,4346.4,4345.3,0.4283]
[1760021783030,9.14975714,4346.4,4345.7,2.30110668]
[1760021783236,9.14875714,4346.4,4345.7,2.30110668]
[1760021783446,6.848,4346.4,4345.7,2.30110668]
[1760021783663,7.35418069,4346.4,4344.7,2.3483]
[1760021783965,2.30096419,4346.1,4344.7,0.4283]
[1760021784263,0.099,4346.0,4344.6,0.001]
[1760021784563,2.393,4345.9,4344.7,2.30165218]
[1760021784864,2.393,4345.9,4344.6,0.001]
[1760021784865,2.30134232,4345.3,4344.6,0.001]
[1760021785050,8.73342821,4345.2,4344.6,0.001]
[1760021785250,6.432,4345.2,4344.6,0.001]
[1760021785457,8.73340623,4345.2,4344.6,0.001]
[1760021785759,6.432,4345.2,4344.6,0.001]
[1760021786154,2.30139003,4345.2,4344.6,0.001]
[1760021786351,6.9471,4345.1,4344.6,0.001]
[1760021786551,2.30149597,4345.0,4344.6,0.001]
[1760021786961,2.30164137,4344.8,4344.6,0.001]
[1760021787155,2.30165488,4344.7,4344.6,0.001]
[1760021787361,2.40175488,4344.7,4344.6,0.001]
[1760021787556,0.1001,4344.7,4344.6,0.001]
[1760021788169,2.40175488,4344.7,4344.6,0.001]
[1760021788358,2.30165488,4344.7,4344.6,0.001]
[1760021788559,9.14865488,4344.7,4344.6,0.001]
[1760021788774,9.24875488,4344.7,4344.6,0.001]
[1760021790177,11.2767885,4344.7,4344.6,0.001]
[1760021792279,3.03535488,4344.7,4344.6,0.001]
[1760021792574,12.27535488,4344.7,4344.6,0.001]
[1760021794178,9.88135488,4344.7,4344.6,0.001]
[1760021794386,12.27535488,4344.7,4344.6,0.001]
[1760021795258,2.62201585,4345.2,4344.6,0.001]
[1760021795259,2.30161558,4344.8,4344.6,0.001]
[1760021795461,0.3206,4345.2,4344.6,0.001]
[1760021795462,2.633,4344.7,4344.6,0.001]
[1760021795700,0.1001,4344.8,4344.6,0.001]
[1760021795997,6.9461,4344.7,4344.6,0.001]
[1760021796196,6.846,4344.7,4344.6,0.001]
[1760021796516,0.1001,4344.7,4344.6,0.001]
[1760021796717,11.80135488,4344.7,4344.6,0.001]
[1760021797557,4.95535488,4344.7,4344.6,0.001]
[1760021797757,14.19435488,4344.7,4344.6,0.001]
[1760021798675,14.19355488,4344.7,4344.6,0.001]
[1760021800375,4.95455488,4344.7,4344.6,0.001]
[1760021800575,14.91916721,4344.7,4344.6,0.001]
[1760021801183,5.68016721,4344.7,4344.6,0.001]
[1760021801369,14.91916721,4344.7,4344.6,0.001]
[1760021802085,12.52516721,4344.7,4344.6,0.001]
[1760021802286,14.91916721,4344.7,4344.6,0.001]
[1760021803376,5.68016721,4344.7,4344.6,0.001]
[1760021803710,14.91816721,4344.7,4344.6,0.001]
[1760021804574,2.93573177,4343.8,4343.7,1e-08]
[1760021804776,14.38730495,4343.8,4343.7,1e-08]
[1760021805015,5.24820495,4343.8,4343.7,1e-08]
[1760021805311,14.48620495,4343.8,4343.7,1e-08]
[1760021806710,12.09220495,4343.8,4343.7,1e-08]
[1760021806885,14.48520495,4343.8,4343.7,1e-08]
[1760021807085,12.09120495,4343.8,4343.7,1e-08]
[1760021807413,2.0189,4343.8,4343.7,1e-08]
[1760021807624,13.46013177,4343.8,4343.7,1e-08]
[1760021807914,13.45913177,4343.8,4343.7,1e-08]
[1760021808114,0.0993,4344.1,4343.8,2.30212553]
[1760021808289,11.32547723,4346.1,4343.7,1e-08]
[1760021808290,0.1144,4343.8,4343.7,1e-08]
[1760021808610,0.1144,4343.8,4343.7,2.30214007]
[1760021809011,0.1144,4343.8,4343.7,1e-08]
[1760021809623,0.1144,4343.8,4343.7,2.30218478]
[1760021809834,0.1144,4343.8,4343.7,1e-08]
[1760021810542,0.1144,4343.8,4343.7,2.30218478]
[1760021810698,0.1144,4343.8,4343.7,1e-08]
[1760021811943,0.1144,4343.8,4343.7,2.30218478]
[1760021812148,0.1144,4343.8,4343.7,2.74268478]
[1760021813063,0.1144,4343.8,4343.7,2.30218478]
[1760021813716,0.1144,4343.8,4343.7,1e-08]
[1760021814256,0.1144,4343.8,4343.7,2.74268478]
[1760021814557,2.9349277,4345.4,4344.3,2.3018159]
[1760021814558,5.741,4344.9,4344.3,2.3018159]
[1760021814712,2.301443,4345.1,4344.4,2.3248272]
[1760021815227,2.43959563,4345.2,4344.4,0.02301813]
[1760021815546,0.1144,4344.4,4343.9,2.74257877]
[1760021815710,0.1144,4344.4,4344.3,2.30186681]
[1760021815920,0.1144,4344.4,4344.3,0.02301866]
[1760021816435,0.1144,4344.4,4344.3,2.32488547]
[1760021817169,0.1144,4344.4,4343.9,0.75592686]
[1760021817345,0.1144,4344.4,4343.8,2.30210787]
[1760021817540,0.1144,4344.4,4343.7,1e-08]
[1760021817746,0.1144,4344.4,4344.0,2.302022]
[1760021817960,0.1144,4344.4,4344.1,2.30196756]
[1760021818674,0.1144,4344.4,4343.7,2.30218104]
[1760021819050,0.1144,4344.4,4343.7,1e-08]
[1760021819374,0.1144,4344.0,4343.9,2.30204311]
[1760021819672,0.1144,4344.0,4343.9,2.77404311]
[1760021819857,0.1144,4344.0,4343.7,1e-08]
[1760021820062,0.1144,4344.0,4343.9,2.30207877]
[1760021820259,0.1144,4344.0,4343.7,1e-08]
[1760021820457,0.1144,4344.0,4343.9,2.30207877]
[1760021820869,0.002,4344.4,4344.3,2.30186681]
[1760021821175,0.002,4344.4,4344.3,2.32488547]
[1760021821176,0.1164,4344.4,4344.3,2.32488547]
[1760021821374,0.002,4344.4,4344.3,2.77386681]
[1760021821676,0.002,4344.4,4344.3,2.83191722]
[1760021821677,0.0012,4344.4,4344.3,2.83191722]
[1760021821843,0.0012,4344.4,4344.3,3.30391722]
[1760021822649,0.0012,4344.4,4344.3,7.61791722]
[1760021823041,0.0012,4344.4,4344.3,5.22391722]
[1760021823275,0.0012,4344.4,4344.3,2.77386681]
[1760021823475,0.0012,4344.4,4344.3,2.30186681]
[1760021823675,0.0012,4344.4,4343.7,9.57800001]
[1760021823980,0.0012,4344.4,4343.7,1e-08]
[1760021823981,0.1002,4344.3,4343.7,1e-08]
[1760021824272,0.1375,4343.8,4343.7,1e-08]
[1760021824484,2.43963177,4343.8,4343.7,1e-08]
[1760021824683,2.632,4343.8,4343.7,1e-08]
[1760021825179,2.54013177,4343.8,4343.7,1e-08]
[1760021825360,11.77013177,4343.8,4343.7,1e-08]
[1760021825560,12.94714495,4343.8,4343.7,1e-08]
[1760021825774,10.55214495,4343.8,4343.7,1e-08]
[1760021825949,12.94614495,4343.8,4343.7,1e-08]
[1760021826858,13.57974495,4343.8,4343.7,1e-08]
[1760021827249,15.49974495,4343.8,4343.7,1e-08]
[1760021829781,20.40119895,4343.8,4343.7,1e-08]
[1760021830087,19.94719895,4343.8,4343.7,1e-08]
[1760021830449,15.49974495,4343.8,4343.7,1e-08]
[1760021830980,25.07774495,4343.8,4343.7,1e-08]
[1760021831179,41.29410195,4343.8,4343.7,1e-08]
[1760021831380,36.17751695,4343.8,4343.7,1e-08]
[1760021831700,32.07985595,4343.8,4343.7,1e-08]
[1760021831898,27.19709995,4343.8,4343.7,1e-08]
[1760021832103,25.07774495,4343.8,4343.7,1e-08]
[1760021832273,33.54447995,4343.8,4343.7,1e-08]
[1760021832598,29.57274495,4343.8,4343.7,1e-08]
[1760021833377,17.59974495,4343.8,4343.7,1e-08]
[1760021833678,55.07974495,4343.8,4343.7,1e-08]
[1760021833883,43.78227595,4343.8,4343.7,1e-08]
[1760021834294,38.32895595,4343.8,4343.7,1e-08]
[1760021834602,34.56826195,4343.8,4343.7,1e-08]
[1760021834772,34.59130295,4343.8,4343.7,1e-08]
[1760021835178,10.44734295,4343.8,4343.7,1e-08]
[1760021835380,25.07974495,4343.8,4343.7,1e-08]
[1760021835612,29.71287295,4343.8,4343.7,1e-08]
[1760021835805,30.44810595,4343.8,4343.7,1e-08]
[1760021835994,29.38330395,4343.8,4343.7,1e-08]
[1760021836306,5.63714495,4343.8,4343.7,1e-08]
[1760021836472,3.71714495,4343.8,4343.7,1e-08]
[1760021836672,2.54013177,4343.8,4343.7,1e-08]
[1760021836996,8.47613177,4343.8,4343.7,1e-08]
[1760021837192,11.02973177,4343.8,4343.7,1e-08]
[1760021837407,0.238,4343.8,4343.7,1e-08]
[1760021837876,0.2366,4344.2,4343.7,1e-08]
[1760021838208,2.30207331,4344.0,4343.7,1e-08]
[1760021838423,0.139,4343.9,4343.7,1e-08]
[1760021838713,2.30213177,4343.8,4343.7,1e-08]
[1760021839073,3.03473177,4343.8,4343.7,1e-08]
[1760021839713,12.26173177,4343.8,4343.7,1e-08]
[1760021841314,14.18173177,4343.8,4343.7,1e-08]
[1760021841636,16.03600764,4343.8,4343.7,1e-08]
[1760021842130,2.6526,4343.8,4343.7,1e-08]
[1760021842416,2.019,4343.8,4343.7,1e-08]
[1760021842714,0.0012,4344.4,4343.7,1e-08]
[1760021842715,2.53851226,4344.3,4343.7,1e-08]
[1760021842913,7.764,4344.2,4343.7,1e-08]
[1760021843319,0.2366,4344.1,4343.7,1e-08]
[1760021843520,0.0012,4344.4,4343.8,2.30213177]
[1760021843685,0.0012,4344.4,4344.1,2.30195511]
[1760021843686,0.3732,4344.4,4344.1,2.30195511]
[1760021844085,0.3732,4344.4,4343.9,2.30203408]
[1760021844325,0.3732,4344.4,4344.0,2.30201078]
[1760021844495,0.1144,4343.9,4343.7,1e-08]
[1760021844695,0.1136,4343.9,4343.7,1e-08]
[1760021846521,0.213,4343.9,4343.7,1e-08]
[1760021846694,0.0994,4343.8,4343.7,1e-08]
[1760021847100,0.1136,4343.9,4343.7,1e-08]
[1760021847431,6.9416,4343.9,4343.7,1e-08]
[1760021847833,0.1136,4343.9,4343.7,2.30217306]
[1760021848141,0.1136,4343.9,4343.7,1e-08]
[1760021849248,0.1136,4343.9,4343.8,2.30213177]
[1760021849609,0.0012,4344.4,4344.3,2.30186681]
[1760021850044,0.1156,4344.4,4344.3,2.30186681]
[1760021850538,0.1156,4344.4,4343.8,0.4405]
[1760021850539,0.1156,4344.4,4343.7,0.23033217]
[1760021850875,0.101,4344.4,4343.7,1e-08]
[1760021851152,3.538,4344.4,4343.7,1e-08]
[1760021851336,3.4382,4344.4,4343.7,1e-08]
[1760021851707,0.0012,4344.4,4343.7,1e-08]
[1760021851908,0.0012,4344.4,4343.8,2.3021317]
[1760021852126,0.0012,4344.4,4343.7,1e-08]
[1760021852509,2.93573177,4343.8,4343.7,1e-08]
[1760021852747,14.21363177,4343.8,4343.7,1e-08]
[1760021852951,14.31383177,4343.8,4343.7,1e-08]
[1760021853909,5.09383177,4343.8,4343.7,1e-08]
[1760021854110,11.91783177,4343.8,4343.7,1e-08]
[1760021854309,15.73482084,4343.8,4343.7,1e-08]
[1760021854719,13.33982084,4343.8,4343.7,1e-08]
[1760021854937,6.51582084,4343.8,4343.7,1e-08]
[1760021855144,13.33982084,4343.8,4343.7,1e-08]
[1760021855536,6.51582084,4343.8,4343.7,1e-08]
[1760021855737,15.73482084,4343.8,4343.7,1e-08]
[1760021855943,6.51582084,4343.8,4343.7,1e-08]
[1760021856140,15.73482084,4343.8,4343.7,1e-08]
[1760021856341,5.88222084,4343.8,4343.7,1e-08]
[1760021856520,13.67923177,4343.8,4343.7,1e-08]
[1760021857432,0.1379,4343.8,4343.7,1e-08]
[1760021857631,4.203,4343.8,4343.7,1e-08]
[1760021858043,6.60563177,4343.8,4343.7,1e-08]
[1760021858353,2.40263177,4343.8,4343.7,1e-08]
[1760021858555,9.22563177,4343.8,4343.7,1e-08]
[1760021862064,0.0012,4344.4,4343.7,1e-08]
[1760021862230,0.1144,4344.3,4343.7,1e-08]
[1760021862426,0.1144,4344.3,4344.2,2.3019198]
[1760021864546,0.0012,4344.4,4344.3,2.30186681]
[1760021864759,0.0012,4344.4,4344.3,2.75396681]
[1760021864963,0.0012,4344.4,4344.3,2.77698547]
[1760021865135,0.0012,4344.4,4344.3,5.42196681]
[1760021865476,0.0012,4344.4,4344.3,7.78795495]
[1760021866176,0.0012,4344.4,4344.3,7.15435495]
[1760021866333,0.0012,4344.4,4344.3,16.36835495]
[1760021867880,0.0004,4344.4,4344.3,16.36835495]
[1760021870772,0.0004,4344.4,4344.3,17.00195495]
[1760021870966,0.0004,4344.4,4344.3,17.16729068]
[1760021871300,1e-08,4344.9,4344.4,4.85541382]
[1760021871611,1e-08,4344.9,4344.8,16.74486096]
[1760021871787,1e-08,4344.9,4344.8,23.56186096]
[1760021871993,1e-08,4344.9,4344.8,24.01396096]
[1760021873407,1e-08,4344.9,4344.8,23.38036096]
[1760021873708,1e-08,4344.9,4344.8,11.49070191]
[1760021873907,1e-08,4344.9,4344.8,12.81717078]
[1760021874205,1e-08,4344.9,4344.8,12.36507078]
[1760021874417,1e-08,4345.4,4344.8,23.03882792]
[1760021874597,0.002,4345.8,4345.4,2.93488411]
[1760021874778,0.2126,4349.6,4346.3,2.30080758]
[1760021874779,0.106,4348.4,4346.3,2.30080758]
[1760021874975,0.106,4348.4,4346.3,13.66940758]
[1760021875190,0.106,4348.4,4346.3,14.12150758]
[1760021875577,1e-08,4346.5,4346.4,16.11041369]
[1760021875770,1e-08,4346.5,4346.4,16.56251369]
[1760021876571,1e-08,4346.5,4346.4,4.67285464]
[1760021876776,1e-08,4346.5,4346.4,24.44062892]
[1760021876979,1e-08,4346.5,4345.1,2.30140436]
[1760021877278,1e-08,4346.5,4345.1,0.4521]
[1760021877473,1e-08,4346.5,4345.0,3.82]
[1760021877474,1e-08,4346.5,4345.5,0.4521]
[1760021877673,2.30070233,4346.5,4345.5,7.22730015]
[1760021877875,2.30075936,4346.4,4345.5,4.9261]
[1760021878106,2.30071477,4346.5,4345.6,2.30116424]
[1760021878313,1e-08,4346.5,4345.5,4.9261]
[1760021878471,1e-08,4346.5,4345.7,2.30110456]
[1760021878906,2.3007077,4346.5,4345.7,2.30110456]
[1760021879105,1e-08,4346.5,4345.8,2.30105241]
[1760021879501,1e-08,4346.5,4345.5,5.64884333]
[1760021879502,2.30072741,4346.5,4345.5,5.64884333]
[1760021879678,1e-08,4346.5,4345.5,7.95006853]
[1760021879878,1e-08,4346.5,4345.6,2.30117357]
[1760021880110,1e-08,4346.5,4345.8,2.30103742]
[1760021880289,2.30070353,4346.5,4345.8,2.30103742]
[1760021880714,1e-08,4346.5,4345.8,2.30104296]
[1760021880922,1e-08,4346.5,4345.9,0.02301019]
[1760021881102,0.1144,4346.0,4345.9,2.32401623]
[1760021881297,0.1144,4346.0,4345.8,2.3010636]
[1760021881503,0.1144,4346.0,4345.5,7.49795243]
[1760021881710,0.1144,4346.0,4345.6,2.30117393]
[1760021882008,0.1144,4346.0,4345.8,2.30105827]
[1760021882217,0.1144,4346.0,4345.5,6.77522004]
[1760021882522,0.1144,4345.5,4345.0,6.812]
[1760021882824,0.1144,4345.5,4345.4,2.30128411]
[1760021884018,0.1144,4345.5,4345.1,0.28292]
[1760021884218,0.1144,4345.5,4345.0,6.812]
[1760021884395,0.1144,4345.2,4345.1,2.301443]
[1760021884987,0.1144,4345.2,4345.0,6.812]
[1760021885214,0.2221,4345.1,4344.5,6.811]
[1760021885416,0.1144,4344.8,4344.5,6.811]
[1760021885620,0.1144,4344.8,4344.5,9.11275475]
[1760021885826,0.1144,4344.8,4344.5,6.811]
[1760021886324,0.1144,4344.8,4344.7,2.30165488]
[1760021886497,0.1144,4344.8,4344.5,6.811]
[1760021888720,0.1144,4344.8,4344.6,2.30166576]
[1760021888915,0.1144,4344.8,4344.5,6.811]
[1760021889120,0.099,4344.7,4344.5,6.811]
[1760021889308,0.1144,4344.6,4344.5,9.11276084]
[1760021889826,0.1144,4344.6,4344.5,2.30176084]
[1760021890230,0.1144,4344.6,4344.5,2.32477844]
[1760021890731,0.1144,4344.6,4344.5,2.75844073]
[1760021891028,0.1136,4344.6,4344.5,2.32477844]
[1760021891427,0.1136,4344.6,4344.3,0.001]
[1760021892006,0.1136,4344.6,4344.4,2.3018125]
[1760021892211,0.1136,4344.6,4344.5,2.30176084]
[1760021893507,0.002,4344.9,4344.8,2.30160191]
[1760021894229,0.002,4344.9,4344.6,2.30166254]
[1760021894427,0.002,4344.9,4344.7,2.30161415]
[1760021895309,0.002,4344.9,4344.5,6.81]
[1760021895310,0.002,4344.9,4344.6,2.30170786]
[1760021895910,0.002,4344.9,4344.3,0.001]
[1760021896230,0.1014,4344.8,4344.3,0.001]
[1760021896632,2.30355452,4344.9,4344.4,0.4362]
[1760021896633,0.002,4344.9,4344.4,0.4362]
[1760021896831,0.002,4344.9,4344.7,2.3016148]
[1760021897637,0.002,4344.9,4344.6,2.30169582]
[1760021898206,0.002,4344.9,4344.7,2.32466993]
[1760021898733,0.002,4344.9,4344.8,2.30160191]
[1760021900637,0.002,4344.9,4344.8,2.77893772]
[1760021900854,0.002,4344.9,4344.8,10.02313772]
[1760021901056,0.002,4344.9,4344.8,12.39412171]
[1760021901763,0.002,4344.9,4344.8,2.7619306]
[1760021901912,0.002,4344.9,4344.8,9.10860191]
[1760021902106,0.002,4344.9,4344.7,6.807]
[1760021902331,0.002,4344.9,4344.7,9.10865477]
[1760021902730,0.002,4344.9,4344.3,0.001]
[1760021902731,0.1057,4344.9,4344.3,0.001]
[1760021902942,0.1057,4344.9,4344.4,2.30176969]
[1760021902943,0.002,4344.9,4344.4,2.30176969]
[1760021903139,0.1057,4344.9,4344.4,2.30176969]
[1760021903748,0.002,4344.9,4344.4,2.30176969]
[1760021903948,0.002,4344.9,4344.5,2.32475634]
[1760021904850,0.1144,4344.7,4344.6,2.30170786]
[1760021905148,0.002,4344.9,4344.8,2.41600191]
[1760021905336,0.002,4344.9,4344.8,9.24501792]
[1760021905653,0.002,4344.9,4344.8,9.65820191]
[1760021905948,0.002,4344.9,4344.8,11.18491515]
[1760021910459,0.002,4344.9,4344.8,11.18591515]
[1760021911762,0.002,4346.5,4344.8,8.76991324]
[1760021911963,0.002,4346.5,4345.7,15.55648815]
[1760021912147,0.002,4346.5,4346.4,2.30075464]
[1760021912469,0.002,4346.5,4346.4,9.58692061]
[1760021912669,0.002,4346.5,4346.4,10.01772061]
[1760021912963,0.002,4346.5,4346.4,11.91471307]
[1760021913852,0.0012,4346.5,4346.4,11.91471307]
[1760021914049,0.0012,4346.5,4346.4,9.99471307]
[1760021915133,0.0012,4346.5,4346.4,6.803]
[1760021915464,2.0332,4346.5,4345.1,6.802]
[1760021915763,0.1132,4346.5,4345.2,0.4308]
[1760021916065,0.1132,4346.5,4345.3,2.30128759]
[1760021916231,2.30081399,4346.3,4345.5,2.30123115]
[1760021916431,2.30081399,4346.3,4345.4,6.802]
[1760021916432,0.4334014,4346.2,4345.4,6.802]
[1760021916671,1.9212,4346.5,4344.8,0.001]
[1760021916672,0.112,4346.1,4344.8,0.001]
[1760021916966,2.3011923,4345.6,4344.8,2.3026006]
[1760021917532,2.41412899,4345.7,4344.8,0.001]
[1760021917729,2.41412899,4345.7,4345.0,2.30147831]
[1760021917730,0.113,4345.7,4345.0,2.30147831]
[1760021917933,0.113,4345.7,4345.1,2.30144286]
[1760021918132,0.113,4345.7,4345.0,2.30148208]
[1760021918375,0.113,4345.7,4344.8,2.30256045]
[1760021918559,0.113,4345.7,4344.9,0.02301548]
[1760021918759,0.6336,4346.4,4344.8,0.001]
[1760021918760,2.30075932,4346.4,4344.8,1.36527205]
[1760021918958,0.3237,4346.6,4345.4,2.30123365]
[1760021918959,2.30191667,4346.5,4345.4,2.30123365]
[1760021919161,2.30088509,4346.2,4345.5,0.02301231]
[1760021919346,0.113,4346.3,4345.5,2.32422907]
[1760021919547,0.24149167,4346.2,4345.5,2.32422907]
[1760021919777,0.24149167,4346.2,4345.3,6.801]
[1760021919975,2.54239529,4346.2,4345.4,2.30127659]
[1760021920150,1.92,4346.1,4345.4,2.30127659]
[1760021920350,2.30092164,4346.1,4345.3,6.801]
[1760021920688,0.45754133,4346.0,4345.3,6.801]
[1760021920847,0.24149167,4346.2,4345.3,6.801]
[1760021920848,0.113,4346.3,4345.3,6.801]
[1760021921265,0.113,4346.3,4345.5,2.30122624]
[1760021921471,0.113,4346.3,4345.6,2.30113516]
[1760021921667,0.113,4346.3,4345.7,2.30110667]
[1760021922049,0.113,4346.3,4345.5,2.30123062]
[1760021922050,0.0012,4346.5,4346.3,2.30077401]
[1760021922251,0.1144,4346.1,4346.0,2.3009664]
[1760021923652,0.1144,4346.1,4346.0,2.32397606]
[1760021924459,0.1144,4346.1,4346.0,2.3009664]
[1760021924669,0.1144,4346.1,4346.0,3.93348066]
[1760021924870,0.1156,4346.5,4346.4,2.30075464]
[1760021925654,0.1156,4346.5,4345.8,6.9154]
[1760021925857,0.1144,4346.2,4345.5,2.30121913]
[1760021926055,0.0012,4346.5,4345.8,2.301057]
[1760021926056,0.1144,4345.9,4345.8,2.301057]
[1760021926360,0.1144,4345.9,4345.4,6.468]
[1760021926583,0.114,4346.4,4345.7,2.30109619]
[1760021926750,0.35559156,4346.4,4345.7,2.30109619]
[1760021927190,0.35559156,4346.4,4345.7,2.30108443]
[1760021927369,0.1144,4345.7,4345.6,2.3011782]
[1760021930008,0.1144,4345.7,4345.5,2.3011813]
[1760021930209,0.115,4345.7,4345.3,9.10132445]
[1760021930503,0.1144,4345.5,4345.4,2.30128411]
[1760021930994,0.1144,4345.5,4345.3,9.10129684]
[1760021931286,0.1144,4345.5,4345.4,2.30128411]
[1760021931890,0.0012,4346.5,4345.4,0.75461259]
[1760021932096,0.0012,4346.5,4346.4,2.30075464]
[1760021932296,0.0012,4346.5,4346.3,2.30076739]
[1760021932495,0.0012,4346.5,4346.4,2.30075464]
[1760021935597,0.0012,4346.5,4346.3,6.8]
[1760021936110,0.118,4346.5,4346.0,6.8]
[1760021936585,0.1168,4346.4,4346.0,6.8]
[1760021936786,0.116,4346.3,4345.5,2.393]
[1760021936986,0.24186563,4346.4,4344.9,9.574]
[1760021936987,2.30077089,4346.4,4345.4,3.943]
[1760021937210,2.30080752,4346.4,4345.4,3.943]
[1760021937402,0.0012,4346.5,4345.4,6.24427246]
[1760021937576,2.30075464,4346.4,4345.4,6.24427246]
[1760021937780,0.42219546,4346.3,4345.4,6.24427246]
[1760021938007,0.42219546,4346.3,4345.6,2.30114016]
[1760021938211,0.42219546,4346.3,4345.4,3.943]
[1760021938212,2.30090265,4346.2,4345.4,3.943]
[1760021938401,2.72305326,4346.3,4345.5,2.30122458]
[1760021938803,0.1152,4346.2,4345.6,2.30116551]
[1760021939310,0.1152,4346.2,4345.5,2.30120712]
[1760021940634,2.30091346,4346.1,4345.2,6.799]
[1760021940985,0.206,4345.3,4344.8,0.051]
[1760021941180,0.1161,4345.2,4344.8,2.35259945]
[1760021941384,0.1161,4345.2,4344.8,0.051]
[1760021941586,0.1161,4345.2,4344.8,2.3525923]
[1760021941892,2.393,4345.9,4344.9,2.30152085]
[1760021941893,1.92,4345.7,4344.9,2.30152085]
[1760021942093,0.0982,4345.6,4344.8,0.051]
[1760021942294,0.2228,4346.0,4345.3,2.30133315]
[1760021942595,0.0995,4346.1,4345.4,0.02301284]
[1760021942914,0.0995,4346.1,4345.5,2.30122545]
[1760021943294,0.1144,4345.5,4345.4,2.32424942]
[1760021943498,0.1144,4345.5,4345.4,2.30123658]
[1760021945534,0.1144,4345.5,4345.3,0.02301337]
[1760021945717,0.1144,4345.5,4345.2,2.3013788]
[1760021945904,0.1144,4345.5,4344.9,2.855]
[1760021946224,0.1144,4345.5,4344.9,3.15704]
[1760021946518,2.62292325,4345.9,4345.2,2.30134867]
[1760021946702,0.1144,4345.3,4345.2,2.30134867]
[1760021947514,0.1144,4345.3,4344.8,0.051]
[1760021947715,0.1027,4345.2,4344.8,2.35258455]
[1760021947911,0.1027,4345.2,4344.8,0.051]
[1760021948438,0.1144,4345.3,4345.2,2.30139003]
[1760021948585,0.002,4346.0,4345.9,2.30101935]
[1760021948905,0.002,4346.0,4345.9,11.04202954]
[1760021949104,0.002,4346.0,4345.9,11.45371935]
[1760021949305,0.002,4346.0,4345.9,2.30101935]
[1760021949517,0.002,4346.0,4345.9,6.798]
[1760021949708,0.002,4346.0,4345.9,9.09901935]
[1760021949906,0.002,4346.0,4345.9,10.91303318]
[1760021952609,0.002,4346.0,4345.9,13.46663318]
[1760021953987,0.002,4346.0,4345.9,24.79803318]
[1760021956438,1e-08,4346.5,4346.4,2.30075464]
[1760021956734,1e-08,4346.5,4346.4,9.72935464]
[1760021957031,1e-08,4346.5,4346.4,10.75552288]
[1760021957933,1e-08,4346.5,4346.4,13.30912288]
[1760021958719,1e-08,4346.5,4346.4,13.42352288]
[1760021959941,0.0751,4348.7,4346.4,13.42352288]
[1760021959942,2.37464719,4348.7,4347.8,2.3000138]
[1760021960099,2.37464719,4348.7,4348.0,2.29986942]
[1760021960299,0.42946472,4348.6,4347.9,6.793]
[1760021960502,0.0751,4348.7,4348.1,2.29981747]